bitfinex/quotes_ETHUSD_20250415
["timestamp","ask_amount","ask_price","bid_price","bid_amount"]
[1744747990820,6.20462865,1611.7,1611.6,0.57158928]
[1744747992986,6.20425172,1611.8,1611.6,0.57158928]
[1744747993622,6.20425172,1611.8,1611.7,0.57158928]
[1744747995023,12.40878815,1611.8,1611.7,0.57158928]
[1744748003821,6.20425172,1611.8,1611.7,0.57158928]
[1744748007225,0.7932,1612.1,1611.8,0.7607]
[1744748007428,6.20312271,1612.1,1611.8,17.23797756]
[1744748007583,6.20312271,1612.1,1611.8,17.23795455]
[1744748007780,0.7932,1612.2,1611.8,3.05072895]
[1744748007995,6.20370512,1612.0,1611.8,1.21477457]
[1744748008236,12.40736022,1612.0,1611.8,1.21477457]
[1744748008439,6.2036551,1612.0,1611.8,1.21477457]
[1744748009026,6.2036551,1612.0,1611.9,0.57158928]
[1744748010452,12.40646584,1612.1,1611.9,0.57158928]
[1744748010734,6.20332453,1612.1,1611.9,0.57158928]
[1744748010942,6.20347394,1612.0,1611.9,1.37064684]
[1744748011127,6.20347394,1612.0,1611.9,0.57158928]
[1744748015143,6.20332453,1612.1,1611.9,0.57158928]
[1744748015347,6.2032216,1612.1,1611.9,0.57158928]
[1744748015559,12.40652776,1612.1,1612.0,0.57158928]
[1744748016854,0.05,1612.4,1612.0,0.57158928]
[1744748017058,0.05,1612.4,1612.3,10.62384513]
[1744748017359,0.05,1612.4,1612.3,11.68332299]
[1744748017877,0.05,1612.4,1612.3,7.58050894]
[1744748018186,0.05,1612.4,1612.3,0.57158928]
[1744748021159,0.05,1612.4,1612.1,7.00945112]
[1744748021357,0.05,1612.4,1612.1,13.21232307]
[1744748021747,0.05,1612.4,1612.1,0.8066]
[1744748021931,0.05,1612.4,1612.3,7.50781966]
[1744748022126,0.05,1612.4,1612.3,8.62009417]
[1744748023069,0.05,1612.4,1612.3,9.18859144]
[1744748024767,0.05,1612.4,1612.3,9.64496598]
[1744748031377,0.05,1612.4,1612.3,15.2469831]
[1744748031583,0.05,1612.4,1612.3,18.18496598]
[1744748041904,0.05,1612.4,1612.3,17.72859144]
[1744748045286,0.05,1612.4,1612.3,19.57355209]
[1744748049701,0.05,1612.4,1612.3,0.56849727]
[1744748049892,7.015835,1612.4,1612.3,0.56849727]
[1744748052505,0.7708,1612.0,1611.8,17.94726156]
[1744748052717,0.8208,1612.4,1612.3,6.20231966]
[1744748052895,0.05,1612.4,1612.3,14.65432602]
[1744748053207,0.05,1612.4,1612.3,1.24048337]
[1744748053421,0.05,1612.4,1612.3,6.20231966]
[1744748053616,0.05,1612.4,1612.2,12.40505817]
[1744748053823,0.05,1612.4,1612.2,11.74151406]
[1744748054027,6.25220873,1612.4,1612.1,6.75299196]
[1744748054319,6.25220873,1612.4,1612.2,0.57194844]
[1744748054523,6.20231966,1612.3,1612.2,0.57194844]
[1744748054678,6.25219672,1612.4,1612.2,0.57194844]
[1744748054882,6.25219672,1612.4,1612.3,0.57194844]
[1744748057115,0.05,1612.4,1612.3,0.57194844]
[1744748058912,0.05,1612.4,1612.3,6.7742681]
[1744748059118,0.05,1612.4,1612.3,8.15362623]
[1744748059614,0.05,1612.4,1612.3,6.7742681]
[1744748063522,0.05,1612.4,1612.3,0.57194844]
[1744748065022,0.05,1612.4,1612.3,6.7742681]
[1744748068433,0.05,1612.4,1612.3,7.3242681]
[1744748068602,0.05,1612.4,1612.3,10.3242681]
[1744748069002,0.05,1612.4,1612.3,13.58753762]
[1744748071759,0.05,1612.4,1612.3,14.41443762]
[1744748077782,0.8102,1612.4,1612.3,0.57194844]
[1744748078654,0.8102,1612.4,1612.3,6.7742681]
[1744748078870,0.05,1612.4,1612.3,6.7742681]
[1744748081799,0.05,1612.4,1612.3,0.57194844]
[1744748083299,0.8577,1612.4,1612.3,0.57194844]
[1744748087103,0.05,1612.4,1612.3,0.57194844]
[1744748087998,0.05,1612.4,1612.3,6.7742681]
[1744748088924,0.05,1612.4,1612.3,0.57194844]
[1744748092330,0.05,1612.4,1612.3,6.7742681]
[1744748093125,0.05,1612.4,1612.3,0.57194844]
[1744748095128,0.05,1612.4,1612.3,8.61959562]
[1744748096199,0.05,1612.4,1612.3,6.7742681]
[1744748097931,0.8804,1612.4,1612.3,0.57194844]
[1744748098150,7.082335,1612.4,1612.3,0.57194844]
[1744748104218,6.20251188,1612.3,1612.0,6.20332894]
[1744748104519,12.40513798,1612.3,1612.0,6.20332894]
[1744748105517,12.40513798,1612.3,1612.1,0.57255666]
[1744748105740,6.20270437,1612.2,1612.1,0.57255666]
[1744748105940,6.97570437,1612.2,1612.1,0.57255666]
[1744748106350,0.773,1612.2,1612.1,0.57255666]
[1744748106753,6.97570437,1612.2,1612.1,0.57255666]
[1744748107756,6.96140437,1612.2,1612.1,0.57255666]
[1744748110221,12.40721183,1612.0,1611.7,11.73734125]
[1744748110560,6.20400781,1611.9,1611.7,5.533]
[1744748110754,12.40800198,1611.9,1611.6,11.10803767]
[1744748110956,6.20518444,1611.6,1611.2,11.20654154]
[1744748111255,0.8237,1611.6,1611.3,15.33849827]
[1744748111552,6.20424675,1611.8,1611.5,9.8047208]
[1744748111856,6.20424675,1611.8,1611.6,0.57236298]
[1744748112057,6.20462865,1611.7,1611.6,0.57236298]
[1744748113025,6.20424675,1611.8,1611.6,0.57236298]
[1744748113799,12.40863624,1611.8,1611.6,0.57236298]
[1744748113960,12.40863624,1611.8,1611.7,0.57236298]
[1744748114374,13.16733624,1611.8,1611.7,0.57236298]
[1744748115299,6.20517375,1611.6,1611.4,0.46094088]
[1744748115501,6.20517375,1611.6,1611.3,16.10999592]
[1744748116172,12.41039837,1611.6,1611.3,16.10999592]
[1744748116673,12.41039837,1611.6,1611.4,0.57169507]
[1744748117604,13.19451955,1611.6,1611.3,11.73914393]
[1744748117762,6.98932596,1611.6,1611.3,11.73914393]
[1744748118100,6.98932596,1611.6,1611.3,5.533]
[1744748118101,13.19452377,1611.6,1611.3,5.533]
[1744748118305,6.98932596,1611.6,1611.3,5.533]
[1744748118990,13.19449803,1611.6,1611.4,0.5716787]
[1744748119999,13.19449803,1611.6,1611.3,5.533]
[1744748120494,0.7842,1611.6,1611.3,17.94526144]
[1744748121598,0.7842,1611.6,1611.4,0.57153841]
[1744748122206,0.7842,1611.6,1611.3,17.94517032]
[1744748122901,6.20508939,1611.6,1611.3,11.7390396]
[1744748123069,6.97753393,1611.7,1611.3,11.7390396]
[1744748123277,6.97753393,1611.7,1611.3,13.40187157]
[1744748123691,6.97753393,1611.7,1611.4,6.20566121]
[1744748124307,6.20433963,1611.8,1611.5,0.7685]
[1744748124474,6.20433963,1611.8,1611.5,13.17909241]
[1744748124675,6.20433963,1611.8,1611.5,13.17907099]
[1744748124913,13.18077975,1611.9,1611.6,0.57111904]
[1744748126020,6.20436325,1611.8,1611.5,6.97377499]
[1744748126201,6.20436325,1611.8,1611.5,13.17907331]
[1744748126599,0.7541,1612.1,1611.7,0.7639]
[1744748126824,0.7541,1612.1,1611.8,9.80356206]
[1744748127024,6.20349212,1612.0,1611.7,13.1729854]
[1744748127200,6.20349212,1612.0,1611.7,20.38122739]
[1744748127525,6.20349212,1612.0,1611.7,14.63838563]
[1744748127824,6.20349212,1612.0,1611.8,0.5717604]
[1744748128028,12.40720377,1612.0,1611.8,0.5717604]
[1744748128320,13.16045804,1612.1,1611.8,0.5717604]
[1744748128926,13.16045804,1612.1,1611.9,0.5717604]
[1744748129294,6.95719889,1612.1,1611.9,0.5717604]
[1744748130128,13.16046966,1612.1,1611.9,0.5717604]
[1744748132131,6.95719889,1612.1,1611.9,0.5717604]
[1744748132322,13.16041951,1612.1,1611.9,0.5717604]
[1744748132509,6.95719889,1612.1,1611.9,0.5717604]
[1744748133133,13.16043848,1612.1,1611.9,0.5717604]
[1744748133651,6.95719889,1612.1,1611.9,0.5717604]
[1744748134851,13.16042249,1612.1,1611.9,0.5717604]
[1744748136852,6.20347394,1612.0,1611.9,0.5717604]
[1744748137153,6.20347394,1612.0,1611.8,0.5717604]
[1744748138216,6.20347394,1612.0,1611.9,0.5717604]
[1744748138954,6.20347394,1612.0,1611.8,0.5717604]
[1744748140066,6.20347394,1612.0,1611.9,0.5717604]
[1744748140657,13.16059485,1612.1,1611.9,0.5717604]
[1744748140861,6.20347394,1612.0,1611.7,14.63835381]
[1744748141359,6.20347394,1612.0,1611.7,20.84287385]
[1744748141658,6.20347394,1612.0,1611.7,14.63835381]
[1744748141833,6.20347394,1612.0,1611.8,0.57303602]
[1744748142659,6.2038588,1611.9,1611.8,0.57303602]
[1744748153565,12.40724937,1612.0,1611.8,0.57303602]
[1744748154494,6.2038588,1611.9,1611.8,0.57303602]
[1744748158296,12.40727382,1612.0,1611.8,0.57303602]
[1744748159178,12.40727382,1612.0,1611.9,0.57303602]
[1744748160165,6.20347394,1612.0,1611.9,0.57303602]
[1744748166480,0.7541,1612.1,1611.9,0.57303602]
[1744748166792,0.05,1612.4,1612.1,12.4057254]
[1744748167094,0.05,1612.4,1612.2,15.0718657]
[1744748167308,0.05,1612.4,1612.2,7.02245066]
[1744748167453,0.05,1612.4,1612.2,8.52967768]
[1744748167966,0.05,1612.4,1612.3,0.57303602]
[1744748168168,6.251935,1612.4,1612.3,0.57303602]
[1744748169625,0.05,1612.4,1612.3,0.57303602]
[1744748169847,0.05,1612.4,1612.3,6.77535568]
[1744748170121,0.05,1612.4,1612.3,8.33981554]
[1744748170480,0.05,1612.4,1612.3,2.13749588]
[1744748172423,0.05,1612.4,1612.3,8.33981554]
[1744748172590,0.05,1612.4,1612.3,0.57303602]
[1744748172795,6.251935,1612.4,1612.3,0.57303602]
[1744748173308,12.45406137,1612.4,1612.2,0.57303602]
[1744748174227,6.251935,1612.4,1612.2,0.57303602]
[1744748176425,0.05,1612.4,1612.2,6.77573994]
[1744748176595,0.05,1612.4,1612.3,0.57303602]
[1744748179029,6.251935,1612.4,1612.3,0.57303602]
[1744748179337,7.056435,1612.4,1612.3,0.57303602]
[1744748179629,12.4050658,1612.3,1612.0,6.3464]
[1744748179938,12.4050658,1612.3,1612.0,12.54986901]
[1744748180433,6.20273215,1612.2,1612.0,6.3464]
[1744748180731,6.20273215,1612.2,1612.1,0.57273502]
[1744748182555,7.77024204,1612.2,1612.1,0.57273502]
[1744748182843,6.20360166,1612.0,1611.7,12.97156399]
[1744748183143,12.40745596,1612.0,1611.7,12.97156399]
[1744748183501,6.20360166,1612.0,1611.7,21.02290499]
[1744748183700,6.20360166,1612.0,1611.8,0.57286815]
[1744748184197,12.40726546,1612.0,1611.8,0.57286815]
[1744748184625,12.40726546,1612.0,1611.9,0.57286815]
[1744748185249,6.20360166,1612.0,1611.9,0.57286815]
[1744748186115,12.40735487,1612.0,1611.8,0.57286815]
[1744748188145,6.20360166,1612.0,1611.8,2.41969679]
[1744748188301,6.20360166,1612.0,1611.8,4.57927427]
[1744748188503,6.20360166,1612.0,1611.8,2.73244563]
[1744748189006,6.20360166,1612.0,1611.9,0.57286815]
[1744748190747,12.40642081,1612.1,1611.9,0.57286815]
[1744748191250,6.20347394,1612.0,1611.9,0.57286815]
[1744748191416,6.96947394,1612.0,1611.9,0.57286815]
[1744748192011,6.20444076,1611.8,1611.6,0.57286815]
[1744748192450,12.40895252,1611.8,1611.6,0.57286815]
[1744748192746,6.20462865,1611.7,1611.6,0.57286815]
[1744748193102,6.20462865,1611.7,1611.5,0.57286815]
[1744748193449,6.20462865,1611.7,1611.5,3.22688841]
[1744748193632,12.4088795,1611.8,1611.5,9.43226194]
[1744748193952,12.4088795,1611.8,1611.6,0.57286815]
[1744748194554,6.20438216,1611.8,1611.6,0.57286815]
[1744748194875,0.8118,1611.9,1611.6,6.77778234]
[1744748195011,7.01583988,1611.9,1611.7,0.57286815]
[1744748195317,12.40824314,1611.9,1611.7,0.57286815]
[1744748197128,6.2042437,1611.8,1611.7,0.57286815]
[1744748197452,12.40878948,1611.8,1611.5,0.8036]
[1744748197653,6.2042437,1611.8,1611.5,7.0089848]
[1744748197816,12.40878948,1611.8,1611.5,7.00888745]
[1744748198319,6.2042437,1611.8,1611.5,7.00888745]
[1744748198510,12.40864228,1611.8,1611.5,7.00888745]
[1744748198934,12.40866661,1611.8,1611.5,7.00888745]
[1744748199134,6.2042437,1611.8,1611.5,7.00888745]
[1744748199542,6.2042437,1611.8,1611.5,13.21418301]
[1744748199845,13.20621627,1611.9,1611.5,13.21418301]
[1744748200146,7.00217014,1611.9,1611.6,6.20498762]
[1744748200437,6.20387014,1611.9,1611.6,12.98262689]
[1744748200641,13.23846815,1612.0,1611.6,12.98262689]
[1744748201140,13.23846815,1612.0,1611.7,0.57275044]
[1744748201342,12.53001815,1612.2,1611.7,0.57275044]
[1744748201542,0.8072,1612.3,1612.1,6.20301934]
[1744748201839,13.26141168,1612.4,1612.0,6.98085657]
[1744748202045,12.4048962,1612.3,1612.0,6.98085657]
[1744748202425,12.4048962,1612.3,1612.0,0.7775]
[1744748202833,12.4048962,1612.3,1612.1,0.57279489]
[1744748203456,6.20237759,1612.3,1612.1,0.57279489]
[1744748203744,6.20237759,1612.3,1612.0,6.98095906]
[1744748204046,12.40495994,1612.3,1612.0,6.98095906]
[1744748204216,12.40495994,1612.3,1612.0,0.7775]
[1744748205946,12.40495994,1612.3,1612.1,0.5730403]
[1744748207155,12.40495994,1612.3,1612.2,0.5730403]
[1744748208155,12.40495994,1612.3,1612.1,0.5730403]
[1744748208456,6.20270437,1612.2,1612.1,0.5730403]
[1744748209161,7.02730437,1612.2,1612.1,0.5730403]
[1744748209459,6.20341074,1612.1,1611.9,0.5730403]
[1744748210260,0.8246,1612.2,1612.0,6.20328176]
[1744748210560,6.20272501,1612.2,1612.1,0.5730403]
[1744748210926,6.2025117,1612.3,1612.1,0.5730403]
[1744748211121,12.40501914,1612.3,1612.1,0.5730403]
[1744748211650,12.40501914,1612.3,1612.2,0.5730403]
[1744748212151,6.20250744,1612.3,1612.2,0.5730403]
[1744748213141,12.40503349,1612.3,1612.1,0.5730403]
[1744748213658,6.20250744,1612.3,1612.1,0.5730403]
[1744748213843,12.40509272,1612.3,1612.1,0.5730403]
[1744748214560,6.20270437,1612.2,1611.9,7.44237621]
[1744748214762,6.20270437,1612.2,1612.0,0.7601]
[1744748215764,6.20270437,1612.2,1612.1,0.57364313]
[1744748216559,6.20250744,1612.3,1612.1,0.57364313]
[1744748216724,12.4049543,1612.3,1612.1,0.57364313]
[1744748217644,12.4049543,1612.3,1612.2,0.57364313]
[1744748221838,13.2037543,1612.3,1612.2,0.57364313]
[1744748222150,12.40733404,1612.0,1611.7,12.50905049]
[1744748222356,6.20363922,1612.0,1611.7,18.71356138]
[1744748222937,12.4065226,1612.1,1611.8,6.77795537]
[1744748224340,12.4065226,1612.1,1611.9,0.57372582]
[1744748224532,6.20347394,1612.0,1611.9,0.57372582]
[1744748230479,6.20318628,1612.1,1611.9,0.57372582]
[1744748230939,6.20318628,1612.1,1612.0,0.57372582]
[1744748231374,6.20280578,1612.2,1612.0,0.57372582]
[1744748231577,12.40499888,1612.3,1612.0,0.57372582]
[1744748231769,12.40499888,1612.3,1612.1,0.57372582]
[1744748232072,6.20239091,1612.3,1612.1,0.57372582]
[1744748232775,6.20270437,1612.2,1612.1,0.57372582]
[1744748232945,12.4049078,1612.3,1612.1,0.57372582]
[1744748233348,6.20239091,1612.3,1612.1,0.57372582]
[1744748234078,6.20241887,1612.3,1612.2,0.57372582]
[1744748236051,12.45412823,1612.4,1612.2,0.57372582]
[1744748236399,6.25205671,1612.4,1612.2,0.57372582]
[1744748236743,0.05,1612.4,1612.3,0.8332]
[1744748237168,0.05,1612.4,1612.3,1.40692582]
[1744748239468,0.05,1612.4,1612.3,0.57372582]
[1744748241085,6.251935,1612.4,1612.3,0.57372582]
[1744748242155,0.05,1612.4,1612.3,0.57372582]
[1744748242353,0.05,1612.4,1612.3,1.25136782]
[1744748243671,0.05,1612.4,1612.3,8.26838748]
[1744748244178,0.05,1612.4,1612.3,2.06606782]
[1744748245392,0.05,1612.4,1612.3,1.25136782]
[1744748245593,0.05,1612.4,1612.3,0.57372582]
[1744748247395,0.005,1612.6,1612.4,1.3635]
[1744748247576,1e-08,1612.6,1612.5,19.27750152]
[1744748247775,1e-08,1612.6,1612.5,17.94349736]
[1744748247970,1e-08,1612.6,1612.5,21.03319598]
[1744748249264,1e-08,1612.6,1612.5,22.78428649]
[1744748250787,1e-08,1612.6,1612.5,19.78428649]
[1744748253117,1e-08,1612.6,1612.5,20.25160662]
[1744748256804,1e-08,1612.6,1612.5,23.80160662]
[1744748259572,1e-08,1612.6,1612.5,23.79960662]
[1744748259772,1e-08,1612.6,1612.5,23.24960662]
[1744748259971,1e-08,1612.6,1612.5,23.79960662]
[1744748264709,1e-08,1612.6,1612.5,0.57372582]
[1744748264911,6.20116582,1612.6,1612.5,0.57372582]
[1744748265088,1e-08,1612.6,1612.5,0.57372582]
[1744748267006,1e-08,1612.6,1612.5,6.7752762]
[1744748268085,1e-08,1612.6,1612.5,10.98410084]
[1744748268283,1e-08,1612.6,1612.5,17.12905463]
[1744748268483,1e-08,1612.6,1612.5,10.92208787]
[1744748270517,1e-08,1612.6,1612.5,7.3252762]
[1744748270685,1e-08,1612.6,1612.5,0.57372582]
[1744748274909,6.20116582,1612.6,1612.5,0.57372582]
[1744748277517,6.20116582,1612.6,1612.5,0.91842646]
[1744748277683,6.20116582,1612.6,1612.5,1.49292565]
[1744748279616,6.20116582,1612.6,1612.5,1.14822501]
[1744748279794,6.20116582,1612.6,1612.5,1.49283849]
[1744748279995,1e-08,1612.6,1612.5,1.49283849]
[1744748280316,1e-08,1612.6,1612.5,16.38486347]
[1744748280482,1e-08,1612.6,1612.5,16.93486347]
[1744748287018,0.3936682,1612.9,1612.8,6.75039682]
[1744748287187,0.3936682,1612.9,1612.8,19.72809315]
[1744748287394,0.3936682,1612.9,1612.8,19.66610849]
[1744748287600,0.3936682,1612.9,1612.8,23.44737479]
[1744748287911,0.3936682,1612.9,1612.8,23.79198827]
[1744748288434,0.3936682,1612.9,1612.8,24.36571409]
[1744748290931,0.3936682,1612.9,1612.8,28.42105219]
[1744748291326,0.3936682,1612.9,1612.8,24.82424052]
[1744748293232,0.3936682,1612.9,1612.8,28.42105219]
[1744748295443,0.8645,1613.4,1613.3,6.19847517]
[1744748295612,0.05,1613.4,1613.3,15.90726549]
[1744748295811,0.05,1613.4,1613.3,11.69847517]
[1744748296006,0.05,1613.4,1613.3,13.45867783]
[1744748296233,0.05,1613.4,1613.3,19.68659605]
[1744748296542,0.7707,1613.8,1613.7,6.19693871]
[1744748296744,0.7707,1614.0,1613.7,9.67053749]
[1744748296918,0.7707,1614.0,1613.8,6.19646074]
[1744748297119,0.7707,1614.0,1613.8,6.25841917]
[1744748297321,0.7707,1614.0,1613.7,6.07372582]
[1744748297516,0.7707,1614.0,1613.7,5.5]
[1744748297717,6.19590677,1614.0,1613.7,5.5]
[1744748297921,0.8118,1613.9,1613.7,5.5]
[1744748298132,0.8118,1613.9,1613.7,11.75885814]
[1744748298544,0.8118,1613.9,1613.7,17.95568408]
[1744748298746,0.8118,1613.9,1613.7,11.69682594]
[1744748299019,0.8118,1613.9,1613.7,5.5]
[1744748299648,7.80869144,1613.9,1613.5,9.79441139]
[1744748299834,6.98691171,1613.8,1613.6,5.499]
[1744748301150,0.7902,1613.8,1613.6,11.69630179]
[1744748302252,0.7902,1613.8,1613.7,6.19693871]
[1744748302617,0.7902,1613.8,1613.6,11.69620308]
[1744748302819,6.98677896,1613.8,1613.6,5.499]
[1744748303017,6.97386151,1614.3,1613.9,0.55]
[1744748303349,6.97388329,1614.3,1614.0,11.69475641]
[1744748303517,12.38977188,1614.3,1614.0,11.69475641]
[1744748303720,0.7791,1614.2,1614.0,11.69475641]
[1744748304245,0.7791,1614.2,1614.0,5.499]
[1744748304451,6.9742492,1614.2,1614.0,5.499]
[1744748304822,0.7791,1614.2,1614.0,11.69471363]
[1744748305032,0.7791,1614.2,1614.0,13.53879465]
[1744748305229,0.7791,1614.2,1614.0,13.53873108]
[1744748305450,0.7791,1614.2,1614.1,6.19540301]
[1744748305656,0.8013,1614.3,1614.1,12.39080602]
[1744748305858,0.8013,1614.3,1614.2,6.1950192]
[1744748306030,0.05,1614.4,1614.2,7.49600824]
[1744748306217,6.24425672,1614.4,1614.2,0.06194682]
[1744748306423,0.05,1614.4,1614.2,6.25686419]
[1744748306722,0.05,1614.4,1614.2,6.25686119]
[1744748306942,6.24425273,1614.4,1614.2,0.06194682]
[1744748307224,0.05,1614.4,1614.2,0.06194682]
[1744748307422,0.05,1614.4,1614.2,7.50218063]
[1744748307967,0.05,1614.4,1614.2,7.50211262]
[1744748308252,0.8646,1614.4,1614.1,3.0]
[1744748308496,7.00981673,1614.2,1614.0,5.493]
[1744748308634,0.8146,1614.2,1614.0,11.68872658]
[1744748308959,0.05,1614.4,1614.1,6.19540301]
[1744748309145,0.8034,1614.3,1614.1,6.19540301]
[1744748309333,0.8034,1614.3,1614.1,1.78840796]
[1744748309533,6.99833206,1614.3,1614.0,11.68867662]
[1744748309745,0.8034,1614.3,1614.0,5.493]
[1744748310044,0.8034,1614.1,1614.0,5.493]
[1744748310835,0.8034,1614.1,1614.0,12.25845594]
[1744748311976,0.8034,1614.1,1614.0,5.493]
[1744748312288,6.19580013,1614.0,1613.7,21.48350483]
[1744748312440,6.99990469,1613.9,1613.8,0.57000884]
[1744748313057,6.99990469,1613.9,1613.8,1.13994736]
[1744748313255,6.99990469,1613.9,1613.8,0.56993852]
[1744748314064,6.99990469,1613.9,1613.7,5.493]
[1744748314275,13.19624098,1613.9,1613.7,5.493]
[1744748314474,6.19655471,1613.8,1613.7,5.493]
[1744748314635,6.19565792,1614.1,1613.5,48.329]
[1744748314636,0.8261,1613.6,1613.5,48.329]
[1744748314839,0.8261,1613.6,1613.5,53.822]
[1744748315161,3.59681167,1614.1,1613.5,53.822]
[1744748315162,0.8261,1613.8,1613.5,54.3925778]
[1744748315361,7.0229831,1613.8,1613.5,54.3925778]
[1744748315548,7.0229831,1613.8,1613.6,0.57070856]
[1744748315984,6.19693871,1613.7,1613.5,54.3925778]
[1744748316190,12.39413556,1613.7,1613.5,54.3925778]
[1744748316674,12.39413556,1613.7,1613.6,0.5705778]
[1744748316864,6.19693871,1613.7,1613.6,0.5705778]
[1744748318142,13.21949747,1613.8,1613.6,0.5705778]
[1744748318772,6.19693871,1613.7,1613.6,0.5705778]
[1744748318964,6.98923871,1613.7,1613.6,0.5705778]
[1744748319962,6.98923871,1613.7,1613.1,0.5705778]
[1744748320176,6.1986577,1613.3,1613.1,0.5705778]
[1744748320383,6.1986577,1613.3,1613.2,0.57160643]
[1744748321489,6.1986577,1613.3,1613.2,1.14218423]
[1744748321698,6.9951577,1613.3,1613.2,1.14218423]
[1744748321912,6.9951577,1613.3,1613.2,0.5705778]
[1744748322891,6.99522385,1613.3,1613.0,6.199433]
[1744748323065,13.19385988,1613.3,1613.0,6.199433]
[1744748323263,6.19928738,1613.1,1612.9,0.5705778]
[1744748323495,6.9950769,1613.3,1612.9,1.2476631]
[1744748323678,13.19393361,1613.3,1612.9,12.9703152]
[1744748323881,6.19894,1613.2,1612.9,6.77041222]
[1744748324187,13.19379216,1613.3,1612.9,12.97029923]
[1744748324357,6.99498647,1613.3,1613.0,6.77016084]
[1744748324758,6.19899014,1613.2,1613.0,0.5705778]
[1744748324969,6.19924369,1613.1,1613.0,0.5705778]
[1744748325795,6.19924369,1613.1,1612.9,0.5705778]
[1744748326095,6.19924369,1613.1,1612.9,1.60735317]
[1744748326686,0.7965,1613.3,1612.9,1.03677537]
[1744748326859,6.19951162,1613.1,1612.8,0.55]
[1744748327059,12.39902324,1613.1,1612.8,0.55]
[1744748327866,6.19951162,1613.1,1612.8,6.75039289]
[1744748328067,6.1989281,1613.2,1612.8,12.95057571]
[1744748328068,12.39794086,1613.2,1612.8,12.95057571]
[1744748328282,6.1989281,1613.2,1612.9,6.19991466]
[1744748328470,6.1989281,1613.2,1612.9,7.85461592]
[1744748329073,6.19931416,1613.1,1612.9,1.65470126]
[1744748329272,12.39890757,1613.1,1612.9,1.65470126]
[1744748329592,6.1997432,1613.0,1612.7,7.01486828]
[1744748329894,7.0044432,1613.0,1612.7,7.01486828]
[1744748330072,7.0044432,1613.0,1612.7,13.21553578]
[1744748330273,13.20352996,1613.1,1612.7,13.21553578]
[1744748331174,6.19963577,1613.0,1612.7,7.0148675]
[1744748331398,6.19963577,1613.0,1612.7,9.30044141]
[1744748331399,12.39948598,1613.0,1612.7,9.30044141]
[1744748331699,6.19963577,1613.0,1612.7,9.30044141]
[1744748332063,6.19963577,1613.0,1612.7,15.50110716]
[1744748332264,13.20345602,1613.1,1612.8,6.2003939]
[1744748334300,6.19964373,1613.0,1612.7,20.99610541]
[1744748334505,6.19964373,1613.0,1612.8,2.09961054]
[1744748336005,12.39942939,1613.0,1612.8,2.09961054]
[1744748336498,6.19964373,1613.0,1612.8,2.09961054]
[1744748337401,12.39941978,1613.0,1612.8,2.09961054]
[1744748337563,6.19964373,1613.0,1612.8,2.09961054]
[1744748338202,13.20347744,1613.1,1612.8,8.29988137]
[1744748341504,6.19928832,1613.1,1612.8,8.29995535]
[1744748341965,6.19928832,1613.1,1612.9,0.57154851]
[1744748342398,12.39869567,1613.1,1612.9,0.57154851]
[1744748342600,0.8231,1613.3,1613.1,6.19903691]
[1744748342802,6.19924369,1613.1,1613.0,0.57185156]
[1744748343514,0.8231,1613.1,1613.0,0.57185156]
[1744748343715,0.8231,1613.1,1612.9,12.39979728]
[1744748343875,7.02234908,1613.1,1612.8,6.20022958]
[1744748344073,7.02234908,1613.1,1612.8,6.90047254]
[1744748344292,7.02234908,1613.1,1612.9,0.34330846]
[1744748344599,13.2217813,1613.1,1613.0,0.57260596]
[1744748345182,6.19963287,1613.0,1612.7,13.20358858]
[1744748345388,6.19963287,1613.0,1612.8,0.57292873]
[1744748345920,7.02234908,1613.1,1612.9,0.57289222]
[1744748346209,6.19924908,1613.1,1612.9,1.14582095]
[1744748346569,6.19924908,1613.1,1613.0,1.14582095]
[1744748346905,6.19924908,1613.1,1613.0,1.48963056]
[1744748347401,12.39799043,1613.2,1613.0,1.48963056]
[1744748347610,12.39799043,1613.2,1613.0,1.14582095]
[1744748347908,12.39799043,1613.2,1613.1,0.57292873]
[1744748348410,12.39799043,1613.2,1613.1,0.91718166]
[1744748348706,12.39799043,1613.2,1613.1,1.49007388]
[1744748349274,13.22689043,1613.2,1613.1,1.49007388]
[1744748349610,13.22689043,1613.2,1613.1,0.57289222]
[1744748349912,6.19983826,1613.0,1612.8,0.57289222]
[1744748350074,6.19983826,1613.0,1612.9,0.34468016]
[1744748350275,6.19983826,1613.0,1612.9,0.91913434]
[1744748350783,6.19983826,1613.0,1612.9,1.49202656]
[1744748356410,6.19962802,1613.0,1612.9,1.49202656]
[1744748358612,6.95092802,1613.0,1612.9,1.49202656]
[1744748359704,10.54773969,1613.0,1612.9,1.49202656]
[1744748360026,10.54773969,1613.0,1612.9,1.1473464]
[1744748360200,6.95092802,1613.0,1612.9,1.1473464]
[1744748360520,6.95092802,1613.0,1612.9,0.57289222]
[1744748361087,6.20039682,1612.8,1612.7,0.57289222]
[1744748361687,6.20039682,1612.8,1612.7,0.91790263]
[1744748363799,7.01619682,1612.8,1612.7,0.91790263]
[1744748365100,7.01619682,1612.8,1612.7,0.57289222]
[1744748365615,0.8158,1612.8,1612.5,0.57289222]
[1744748365815,6.20053189,1612.8,1612.5,6.77427542]
[1744748366032,12.40109711,1612.8,1612.6,0.34472014]
[1744748366393,6.20078129,1612.7,1612.6,0.34472014]
[1744748366700,12.40129158,1612.8,1612.6,0.91761236]
[1744748367522,12.40129158,1612.8,1612.7,0.34472014]
[1744748368027,12.40129158,1612.8,1612.7,0.91761236]
[1744748368321,6.20053189,1612.8,1612.7,0.91761236]
[1744748370743,5.493,1613.2,1612.7,7.11835314]
[1744748371024,6.19934607,1613.1,1612.8,6.99839069]
[1744748371323,6.19934607,1613.1,1612.9,0.57289222]
[1744748372428,12.39803787,1613.2,1613.0,0.57289222]
[1744748372627,6.19924369,1613.1,1613.0,0.91727166]
[1744748372995,7.03064369,1613.1,1613.0,0.91727166]
[1744748373697,7.03064369,1613.1,1613.0,0.57289222]
[1744748373929,12.40050314,1612.9,1612.6,7.01757914]
[1744748374796,12.40050314,1612.9,1612.7,0.3445182]
[1744748375023,12.40050314,1612.9,1612.7,0.91875228]
[1744748375231,6.20025157,1612.9,1612.7,0.91875228]
[1744748375409,6.19973752,1613.0,1612.8,0.7527]
[1744748375734,6.19973752,1613.0,1612.9,0.3445182]
[1744748376232,0.7627,1613.4,1613.0,0.7527]
[1744748376424,6.19897216,1613.2,1613.0,0.7527]
[1744748376738,6.19897216,1613.2,1613.0,1.53982423]
[1744748377228,6.19897216,1613.2,1613.1,0.91875228]
[1744748377833,6.96167216,1613.2,1613.1,0.57423408]
[1744748379198,6.19954306,1613.1,1612.8,6.2427]
[1744748379401,12.39908612,1613.1,1612.9,0.3444949]
[1744748380441,12.39908612,1613.1,1613.0,0.91857924]
[1744748382239,12.39908612,1613.1,1613.0,0.57408434]